[Event "*** Titled Tuesday Blitz"]
[Site "Chess.com"]
[Date "2020.04.28"]
[Round "7"]
[White "jposthuma"]
[Black "WIDBIFS"]
[Result "0-1"]
[WhiteElo "2580"]
[BlackElo "2827"]
[TimeControl "180+1"]
[EndTime "11:17:55 PDT"]
[Termination "WIDBIFS won on time"]

1. d4 {[%clk 0:03:00.9]} 1... Nf6 {[%clk 0:02:59.4]} 2. c4 {[%clk 0:03:01]} 2...
g6 {[%clk 0:03:00.1]} 3. Nc3 {[%clk 0:03:00.8]} 3... Bg7 {[%clk 0:03:00.7]} 4.
e4 {[%clk 0:03:01]} 4... O-O {[%clk 0:03:01.3]} 5. Be3 {[%clk 0:03:00.6]} 5...
d6 {[%clk 0:03:01.7]} 6. f3 {[%clk 0:03:00.9]} 6... c5 {[%clk 0:03:01.9]} 7.
dxc5 {[%clk 0:03:01.8]} 7... dxc5 {[%clk 0:03:02.8]} 8. Qxd8 {[%clk 0:03:02.3]}
8... Rxd8 {[%clk 0:03:03.1]} 9. Bxc5 {[%clk 0:03:03.2]} 9... Nc6 {[%clk
0:03:03.8]} 10. Nge2 {[%clk 0:03:03.3]} 10... b6 {[%clk 0:03:03]} 11. Ba3 {[%clk
0:03:03]} 11... Ba6 {[%clk 0:03:03.3]} 12. Nb5 {[%clk 0:03:03.1]} 12... Rd7
{[%clk 0:03:01.7]} 13. Nec3 {[%clk 0:02:32.6]} 13... Nh5 {[%clk 0:02:54.7]} 14.
Be2 {[%clk 0:02:15.2]} 14... Bb7 {[%clk 0:02:46.8]} 15. Nd5 {[%clk 0:02:04.7]}
15... e6 {[%clk 0:02:45.1]} 16. Ne3 {[%clk 0:01:46]} 16... Rad8 {[%clk
0:02:40.1]} 17. Kf2 {[%clk 0:01:37.1]} 17... Nf4 {[%clk 0:02:18]} 18. Rhd1
{[%clk 0:01:32.5]} 18... Rd2 {[%clk 0:02:08.7]} 19. Rxd2 {[%clk 0:00:35.7]}
19... Rxd2 {[%clk 0:02:09.6]} 20. Re1 {[%clk 0:00:35.3]} 20... Nd4 {[%clk
0:01:37.6]} 21. Nc3 {[%clk 0:00:19.6]} 21... Ndxe2 {[%clk 0:01:16.4]} 22. Nxe2
{[%clk 0:00:18.6]} 22... Bd4 {[%clk 0:00:55.7]} 23. Bb4 {[%clk 0:00:02.2]} 23...
Nd3+ {[%clk 0:00:53.7]} 24. Kf1 {[%clk 0:00:02.1]} 24... Nxb4 {[%clk 0:00:51.3]}
25. Nf4 {[%clk 0:00:01.6]} 25... g5 {[%clk 0:00:38.4]} 26. Nh5 {[%clk
0:00:01.6]} 26... Nd3 {[%clk 0:00:27.4]} 27. Ng4 {[%clk 0:00:01.2]} 27... Nxe1
{[%clk 0:00:26.6]} 28. Kxe1 {[%clk 0:00:01.7]} 28... Rxg2 {[%clk 0:00:25.3]} 29.
Nh6+ {[%clk 0:00:02.1]} 29... Kf8 {[%clk 0:00:24.8]} 0-1

[Event "*** Titled Tuesday Blitz"]
[Site "Chess.com"]
[Date "2020.04.28"]
[Round "7"]
[White "Jaka_Brilej"]
[Black "tsvet2005"]
[Result "0-1"]
[WhiteElo "2372"]
[BlackElo "2508"]
[TimeControl "180+1"]
[EndTime "11:17:55 PDT"]
[Termination "tsvet2005 won by resignation"]

1. e4 {[%clk 0:03:00.9]} 1... c5 {[%clk 0:03:00.4]} 2. Nf3 {[%clk 0:02:47.6]}
2... d6 {[%clk 0:03:00.6]} 3. d4 {[%clk 0:02:46.7]} 3... cxd4 {[%clk 0:03:01.5]}
4. Nxd4 {[%clk 0:02:46.5]} 4... Nf6 {[%clk 0:03:02.4]} 5. Nc3 {[%clk 0:02:46.2]}
5... a6 {[%clk 0:03:03]} 6. f3 {[%clk 0:02:46.1]} 6... e5 {[%clk 0:03:02.4]} 7.
Nb3 {[%clk 0:02:45.8]} 7... Be6 {[%clk 0:03:02.7]} 8. Be3 {[%clk 0:02:45.8]}
8... Be7 {[%clk 0:03:02.7]} 9. Qd2 {[%clk 0:02:45.8]} 9... Nbd7 {[%clk
0:03:03.2]} 10. O-O-O {[%clk 0:02:45]} 10... b5 {[%clk 0:03:03.8]} 11. g4 {[%clk
0:02:44.6]} 11... Nb6 {[%clk 0:03:03.6]} 12. g5 {[%clk 0:02:44]} 12... Nh5
{[%clk 0:03:03.8]} 13. Bd3 {[%clk 0:02:10.2]} 13... O-O {[%clk 0:02:54.9]} 14.
Rhg1 {[%clk 0:02:07.5]} 14... Qc7 {[%clk 0:02:49.4]} 15. Kb1 {[%clk 0:01:59.2]}
15... b4 {[%clk 0:02:33.5]} 16. Ne2 {[%clk 0:01:58]} 16... a5 {[%clk 0:02:33.6]}
17. f4 {[%clk 0:01:48]} 17... a4 {[%clk 0:02:30.6]} 18. Nbc1 {[%clk 0:01:47.7]}
18... a3 {[%clk 0:02:25.6]} 19. b3 {[%clk 0:01:41]} 19... exf4 {[%clk
0:01:57.5]} 20. Nxf4 {[%clk 0:01:40.1]} 20... Nxf4 {[%clk 0:01:57.8]} 21. Bxf4
{[%clk 0:01:39.9]} 21... Qc5 {[%clk 0:01:58.7]} 22. Ne2 {[%clk 0:01:13.6]} 22...
Rab8 {[%clk 0:01:24.5]} 23. Be3 {[%clk 0:01:12.4]} 23... Qc7 {[%clk 0:01:24.6]}
24. Nd4 {[%clk 0:01:08.2]} 24... Bd7 {[%clk 0:01:18.8]} 25. h4 {[%clk
0:01:01.7]} 25... d5 {[%clk 0:01:14.4]} 26. Bf4 {[%clk 0:00:57.2]} 26... Bd6
{[%clk 0:01:14.4]} 27. Bxd6 {[%clk 0:00:56]} 27... Qxd6 {[%clk 0:01:15.3]} 28.
exd5 {[%clk 0:00:49.7]} 28... Nxd5 {[%clk 0:01:16.2]} 29. Bc4 {[%clk 0:00:22.3]}
29... Nc3+ {[%clk 0:01:11]} 30. Ka1 {[%clk 0:00:21.8]} 30... Nxd1 {[%clk
0:01:06.2]} 31. Rxd1 {[%clk 0:00:22.7]} 31... Bg4 {[%clk 0:01:05.3]} 32. Rg1
{[%clk 0:00:22.2]} 32... Bf5 {[%clk 0:00:54.3]} 33. Qf2 {[%clk 0:00:20.1]} 33...
Bg6 {[%clk 0:00:51.4]} 34. Kb1 {[%clk 0:00:20.2]} 34... Rbd8 {[%clk 0:00:50.9]}
35. Rd1 {[%clk 0:00:20]} 35... Qe5 {[%clk 0:00:46.5]} 36. h5 {[%clk 0:00:13.2]}
36... Bxh5 {[%clk 0:00:42.6]} 37. Bd3 {[%clk 0:00:13.7]} 37... Bxd1 {[%clk
0:00:35.9]} 0-1

[Event "*** Titled Tuesday Blitz"]
[Site "Chess.com"]
[Date "2020.04.28"]
[Round "7"]
[White "BocharovD"]
[Black "Hanging_pointer"]
[Result "1-0"]
[WhiteElo "2806"]
[BlackElo "2604"]
[TimeControl "180+1"]
[EndTime "11:17:56 PDT"]
[Termination "BocharovD won on time"]

1. c4 {[%clk 0:03:00.9]} 1... c6 {[%clk 0:02:36.9]} 2. Nf3 {[%clk 0:02:58.8]}
2... d5 {[%clk 0:02:37.8]} 3. e3 {[%clk 0:02:59.3]} 3... Nf6 {[%clk 0:02:34.4]}
4. Nc3 {[%clk 0:02:59.3]} 4... Bg4 {[%clk 0:02:34.1]} 5. cxd5 {[%clk 0:02:57.4]}
5... Nxd5 {[%clk 0:02:33.1]} 6. Be2 {[%clk 0:02:47.7]} 6... e6 {[%clk
0:02:28.2]} 7. O-O {[%clk 0:02:47.3]} 7... Be7 {[%clk 0:02:27.7]} 8. d4 {[%clk
0:02:46.1]} 8... O-O {[%clk 0:02:27.5]} 9. h3 {[%clk 0:02:41.1]} 9... Bh5 {[%clk
0:02:26]} 10. Ne4 {[%clk 0:02:38.9]} 10... Nd7 {[%clk 0:02:23.5]} 11. Ng3 {[%clk
0:02:34.4]} 11... Bg6 {[%clk 0:02:23.2]} 12. a3 {[%clk 0:02:30.2]} 12... a5
{[%clk 0:02:22]} 13. Re1 {[%clk 0:02:28.5]} 13... Rc8 {[%clk 0:02:12.4]} 14. Bf1
{[%clk 0:02:27.4]} 14... c5 {[%clk 0:02:11.4]} 15. e4 {[%clk 0:02:25.4]} 15...
N5f6 {[%clk 0:02:10.2]} 16. d5 {[%clk 0:02:24.8]} 16... exd5 {[%clk 0:02:09.7]}
17. e5 {[%clk 0:02:24.6]} 17... Ne4 {[%clk 0:02:06.4]} 18. Qxd5 {[%clk 0:02:24]}
18... Nxg3 {[%clk 0:02:04.9]} 19. fxg3 {[%clk 0:02:24.9]} 19... Nb6 {[%clk
0:01:44.7]} 20. Qxb7 {[%clk 0:02:19.3]} 20... c4 {[%clk 0:01:26.8]} 21. Kh2
{[%clk 0:02:07.5]} 21... Bc5 {[%clk 0:00:57.5]} 22. Bg5 {[%clk 0:01:57.2]} 22...
Qc7 {[%clk 0:00:57]} 23. Qxc7 {[%clk 0:01:47.9]} 23... Rxc7 {[%clk 0:00:57.9]}
24. Bd2 {[%clk 0:01:47.6]} 24... Ra7 {[%clk 0:00:51.4]} 25. Rac1 {[%clk
0:01:46.4]} 25... Rc8 {[%clk 0:00:49]} 26. e6 {[%clk 0:01:38.4]} 26... fxe6
{[%clk 0:00:44.5]} 27. Rxe6 {[%clk 0:01:37.6]} 27... Bf7 {[%clk 0:00:43.8]} 28.
Re5 {[%clk 0:01:37.4]} 28... Na4 {[%clk 0:00:40.9]} 29. Rc2 {[%clk 0:01:22.6]}
29... Bf8 {[%clk 0:00:32.5]} 30. Ng5 {[%clk 0:01:20.9]} 30... Bd6 {[%clk
0:00:17.8]} 31. Nxf7 {[%clk 0:01:15.5]} 31... Kxf7 {[%clk 0:00:18.7]} 32. Re4
{[%clk 0:01:06.5]} 32... c3 {[%clk 0:00:14.9]} 33. Rxa4 {[%clk 0:00:51.8]} 33...
cxd2 {[%clk 0:00:15.1]} 34. Rxd2 {[%clk 0:00:52.4]} 34... Rd8 {[%clk 0:00:15.6]}
35. Rad4 {[%clk 0:00:46.7]} 35... Rad7 {[%clk 0:00:13.6]} 36. Kh1 {[%clk
0:00:46.4]} 1-0

[Event "*** Titled Tuesday Blitz"]
[Site "Chess.com"]
[Date "2020.04.28"]
[Round "7"]
[White "dimke2802"]
[Black "Gvetadze"]
[Result "0-1"]
[WhiteElo "2490"]
[BlackElo "2385"]
[TimeControl "180+1"]
[EndTime "11:17:56 PDT"]
[Termination "Gvetadze won on time"]

1. d4 {[%clk 0:03:00.9]} 1... Nf6 {[%clk 0:02:59.3]} 2. Nf3 {[%clk 0:03:00.7]}
2... g6 {[%clk 0:02:59.6]} 3. c4 {[%clk 0:03:00.7]} 3... Bg7 {[%clk 0:03:00]} 4.
g3 {[%clk 0:03:00.8]} 4... O-O {[%clk 0:03:00.6]} 5. Bg2 {[%clk 0:03:01.3]} 5...
c5 {[%clk 0:03:00.9]} 6. O-O {[%clk 0:03:00.9]} 6... d6 {[%clk 0:03:00.8]} 7.
dxc5 {[%clk 0:02:59.8]} 7... dxc5 {[%clk 0:03:00.4]} 8. Ne5 {[%clk 0:03:00.5]}
8... Qc7 {[%clk 0:02:58.5]} 9. Nd3 {[%clk 0:02:55.4]} 9... Nbd7 {[%clk
0:02:56.7]} 10. Nc3 {[%clk 0:02:55.1]} 10... a6 {[%clk 0:02:56.2]} 11. Bf4
{[%clk 0:02:54.5]} 11... e5 {[%clk 0:02:55.5]} 12. Bg5 {[%clk 0:02:54.3]} 12...
Nb6 {[%clk 0:02:51.7]} 13. Rc1 {[%clk 0:02:50.2]} 13... Be6 {[%clk 0:02:38]} 14.
Bxf6 {[%clk 0:02:43]} 14... Bxf6 {[%clk 0:02:37.6]} 15. Nd5 {[%clk 0:02:43.6]}
15... Bxd5 {[%clk 0:02:35.4]} 16. cxd5 {[%clk 0:02:44.5]} 16... c4 {[%clk
0:02:33.8]} 17. b3 {[%clk 0:02:42.1]} 17... e4 {[%clk 0:02:28]} 18. Nf4 {[%clk
0:02:04.9]} 18... c3 {[%clk 0:02:17.8]} 19. Bxe4 {[%clk 0:02:03.5]} 19... Qe5
{[%clk 0:02:15.8]} 20. Bg2 {[%clk 0:01:59.9]} 20... Rfd8 {[%clk 0:02:14.9]} 21.
Qd3 {[%clk 0:01:57.9]} 21... Rac8 {[%clk 0:02:13.8]} 22. e3 {[%clk 0:01:54.1]}
22... Bh8 {[%clk 0:02:03.5]} 23. Rfd1 {[%clk 0:01:53.2]} 23... Rc5 {[%clk
0:01:59.4]} 24. d6 {[%clk 0:01:21.2]} 24... Rd7 {[%clk 0:01:52.8]} 25. a4 {[%clk
0:01:13.4]} 25... Nc8 {[%clk 0:01:51.5]} 26. Nd5 {[%clk 0:00:59.4]} 26... Rxd6
{[%clk 0:01:46.3]} 27. e4 {[%clk 0:00:56.9]} 27... Rcc6 {[%clk 0:01:34.5]} 28.
f4 {[%clk 0:00:56.3]} 28... Qe8 {[%clk 0:01:34.3]} 29. e5 {[%clk 0:00:56.6]}
29... Rd8 {[%clk 0:01:31.5]} 30. Rxc3 {[%clk 0:00:56.4]} 30... Rxc3 {[%clk
0:01:28.1]} 31. Qxc3 {[%clk 0:00:55.5]} 31... Ne7 {[%clk 0:01:26.1]} 32. Nf6+
{[%clk 0:00:41.2]} 32... Bxf6 {[%clk 0:01:23.5]} 33. Rxd8 {[%clk 0:00:41]} 33...
Qxd8 {[%clk 0:01:23.1]} 34. exf6 {[%clk 0:00:41.9]} 34... Nf5 {[%clk 0:01:16.2]}
35. Bxb7 {[%clk 0:00:37.7]} 35... Qb6+ {[%clk 0:01:15.7]} 36. Kg2 {[%clk
0:00:35]} 36... Qxb7+ {[%clk 0:01:15.9]} 37. Kh3 {[%clk 0:00:29.8]} 37... h5
{[%clk 0:01:14]} 38. b4 {[%clk 0:00:25.7]} 38... Qh1 {[%clk 0:01:07.6]} 39. Qc8+
{[%clk 0:00:16.7]} 39... Kh7 {[%clk 0:01:06.9]} 40. Qxa6 {[%clk 0:00:17.6]}
40... Qf3 {[%clk 0:01:02.4]} 41. Qc4 {[%clk 0:00:14.5]} 41... Qg4+ {[%clk
0:01:00.1]} 42. Kg2 {[%clk 0:00:13.5]} 42... Ne3+ {[%clk 0:01:00.5]} 0-1

[Event "*** Titled Tuesday Blitz"]
[Site "Chess.com"]
[Date "2020.04.28"]
[Round "7"]
[White "ChessQueen"]
[Black "Joshukid"]
[Result "1-0"]
[WhiteElo "2736"]
[BlackElo "2550"]
[TimeControl "180+1"]
[EndTime "11:17:58 PDT"]
[Termination "ChessQueen won by resignation"]

1. Nf3 {[%clk 0:03:00.9]} 1... Nf6 {[%clk 0:02:58.1]} 2. g3 {[%clk 0:03:01.1]}
2... d5 {[%clk 0:02:56.6]} 3. Bg2 {[%clk 0:03:02]} 3... Bg4 {[%clk 0:02:54.5]}
4. O-O {[%clk 0:03:01.3]} 4... c6 {[%clk 0:02:50.4]} 5. d4 {[%clk 0:02:59.4]}
5... e6 {[%clk 0:02:49.5]} 6. h3 {[%clk 0:02:58]} 6... Bh5 {[%clk 0:02:48.8]} 7.
c4 {[%clk 0:02:56.8]} 7... Nbd7 {[%clk 0:02:48.4]} 8. cxd5 {[%clk 0:02:55.4]}
8... exd5 {[%clk 0:02:46]} 9. Nh4 {[%clk 0:02:53]} 9... Bg6 {[%clk 0:02:39]} 10.
Nc3 {[%clk 0:02:51.5]} 10... Be7 {[%clk 0:02:38]} 11. Nxg6 {[%clk 0:02:51.7]}
11... hxg6 {[%clk 0:02:33.4]} 12. Qd3 {[%clk 0:02:52.6]} 12... O-O {[%clk
0:02:30.3]} 13. Rb1 {[%clk 0:02:53]} 13... a5 {[%clk 0:02:28.6]} 14. Bf4 {[%clk
0:02:43]} 14... Re8 {[%clk 0:02:26.8]} 15. Bf3 {[%clk 0:02:39.1]} 15... Nf8
{[%clk 0:02:26.6]} 16. Kg2 {[%clk 0:02:37.1]} 16... Ne6 {[%clk 0:02:26.7]} 17.
Be3 {[%clk 0:02:34]} 17... c5 {[%clk 0:02:25.1]} 18. Nb5 {[%clk 0:02:20.4]}
18... Qb6 {[%clk 0:02:05.7]} 19. a4 {[%clk 0:02:17.9]} 19... c4 {[%clk
0:02:02.1]} 20. Qc2 {[%clk 0:02:11.5]} 20... g5 {[%clk 0:01:47.9]} 21. Rfd1
{[%clk 0:02:01.5]} 21... Rad8 {[%clk 0:01:44.4]} 22. Nc3 {[%clk 0:01:49.3]}
22... g6 {[%clk 0:01:28]} 23. Qc1 {[%clk 0:01:46.4]} 23... Qc6 {[%clk
0:01:08.1]} 24. Bxg5 {[%clk 0:01:40.3]} 24... Nxg5 {[%clk 0:01:09]} 25. Qxg5
{[%clk 0:01:40.5]} 25... Ne4 {[%clk 0:01:09.5]} 26. Qc1 {[%clk 0:01:32.9]} 26...
Nxc3 {[%clk 0:01:08.1]} 27. bxc3 {[%clk 0:01:32.9]} 27... Qxa4 {[%clk
0:01:08.4]} 28. Rxb7 {[%clk 0:01:32.7]} 28... Qc6 {[%clk 0:01:05.1]} 29. Qb1
{[%clk 0:01:15.4]} 29... Bb4 {[%clk 0:00:53.4]} 30. Rxb4 {[%clk 0:01:02.9]}
30... axb4 {[%clk 0:00:53.4]} 31. Qxb4 {[%clk 0:01:03.8]} 31... Rb8 {[%clk
0:00:53.6]} 32. Qa3 {[%clk 0:01:02.1]} 32... Rb3 {[%clk 0:00:52.7]} 33. Qc1
{[%clk 0:01:02.3]} 33... Kg7 {[%clk 0:00:46.2]} 34. h4 {[%clk 0:01:02.5]} 34...
Rh8 {[%clk 0:00:41.3]} 35. Rh1 {[%clk 0:01:01.3]} 35... Qe6 {[%clk 0:00:38.2]}
36. h5 {[%clk 0:00:59]} 36... gxh5 {[%clk 0:00:34.7]} 37. Qg5+ {[%clk
0:00:58.3]} 37... Kf8 {[%clk 0:00:31.5]} 38. Bxd5 {[%clk 0:00:52.9]} 38... Qxe2
{[%clk 0:00:18.5]} 39. Qf6 {[%clk 0:00:46.8]} 39... Rh7 {[%clk 0:00:17.1]} 40.
Ra1 {[%clk 0:00:46.4]} 40... Rb8 {[%clk 0:00:12.1]} 41. Qd6+ {[%clk 0:00:45.9]}
1-0

[Event "*** Titled Tuesday Blitz"]
[Site "Chess.com"]
[Date "2020.04.28"]
[Round "7"]
[White "David_Paravyan"]
[Black "Spartakus1975"]
[Result "0-1"]
[WhiteElo "2942"]
[BlackElo "2771"]
[TimeControl "180+1"]
[EndTime "11:17:59 PDT"]
[Termination "Spartakus1975 won by resignation"]

1. e4 {[%clk 0:03:00.9]} 1... e6 {[%clk 0:02:59.6]} 2. d4 {[%clk 0:03:00.9]}
2... d5 {[%clk 0:03:00.2]} 3. Nc3 {[%clk 0:03:01.4]} 3... Nf6 {[%clk 0:03:00.5]}
4. e5 {[%clk 0:03:01.9]} 4... Nfd7 {[%clk 0:03:00.7]} 5. f4 {[%clk 0:03:02.5]}
5... c5 {[%clk 0:03:01.3]} 6. Nf3 {[%clk 0:03:03.1]} 6... Nc6 {[%clk 0:03:01.9]}
7. Be3 {[%clk 0:03:03.7]} 7... Be7 {[%clk 0:03:02.4]} 8. Qd2 {[%clk 0:03:03.7]}
8... O-O {[%clk 0:03:02.1]} 9. h4 {[%clk 0:03:02.4]} 9... c4 {[%clk 0:02:52.6]}
10. f5 {[%clk 0:02:35.9]} 10... b5 {[%clk 0:02:40.4]} 11. fxe6 {[%clk 0:02:04]}
11... fxe6 {[%clk 0:02:39.4]} 12. Ng5 {[%clk 0:02:04.5]} 12... Nb6 {[%clk
0:02:06.5]} 13. Nxb5 {[%clk 0:02:02.9]} 13... Rb8 {[%clk 0:01:51.1]} 14. a4
{[%clk 0:01:35.2]} 14... Nxa4 {[%clk 0:01:44]} 15. Rxa4 {[%clk 0:01:23.4]} 15...
Rxb5 {[%clk 0:01:42.9]} 16. c3 {[%clk 0:01:24]} 16... Qb6 {[%clk 0:01:28.8]} 17.
Qc2 {[%clk 0:01:21]} 17... Rf5 {[%clk 0:01:28.1]} 18. Ra2 {[%clk 0:01:13.4]}
18... Nxe5 {[%clk 0:01:19.8]} 19. Bc1 {[%clk 0:00:42.1]} 19... Rxf1+ {[%clk
0:00:47.2]} 20. Kxf1 {[%clk 0:00:34.9]} 20... Nd3 {[%clk 0:00:47.2]} 21. g3
{[%clk 0:00:15.5]} 21... e5 {[%clk 0:00:46.7]} 22. Kg2 {[%clk 0:00:14.2]} 22...
Bf5 {[%clk 0:00:44.3]} 23. Qe2 {[%clk 0:00:12.2]} 23... Bxg5 {[%clk 0:00:34.1]}
24. Bxg5 {[%clk 0:00:06.1]} 24... Be4+ {[%clk 0:00:32]} 25. Kh2 {[%clk
0:00:06.6]} 25... Bxh1 {[%clk 0:00:30.4]} 26. Kxh1 {[%clk 0:00:07.1]} 26... Rxb2
{[%clk 0:00:27.4]} 27. Qg4 {[%clk 0:00:04]} 27... Nf2+ {[%clk 0:00:20.8]} 28.
Kg1 {[%clk 0:00:03.1]} 28... Nxg4 {[%clk 0:00:20.5]} 0-1

[Event "*** Titled Tuesday Blitz"]
[Site "Chess.com"]
[Date "2020.04.28"]
[Round "7"]
[White "WelshTiger"]
[Black "Oglob71"]
[Result "0-1"]
[WhiteElo "2347"]
[BlackElo "2490"]
[TimeControl "180+1"]
[EndTime "11:18:00 PDT"]
[Termination "Oglob71 won on time"]

1. e4 {[%clk 0:03:00.9]} 1... c5 {[%clk 0:02:57.5]} 2. Nf3 {[%clk 0:03:00.4]}
2... d6 {[%clk 0:02:56.5]} 3. d4 {[%clk 0:02:59.5]} 3... cxd4 {[%clk 0:02:56.3]}
4. Nxd4 {[%clk 0:02:59.6]} 4... Nf6 {[%clk 0:02:56.8]} 5. Nc3 {[%clk 0:02:59.9]}
5... Nc6 {[%clk 0:02:57.3]} 6. Be3 {[%clk 0:02:58.3]} 6... e5 {[%clk 0:02:57.1]}
7. Nxc6 {[%clk 0:02:32.1]} 7... bxc6 {[%clk 0:02:56.3]} 8. Bc4 {[%clk
0:02:31.4]} 8... Be7 {[%clk 0:02:56.8]} 9. O-O {[%clk 0:02:30.8]} 9... O-O
{[%clk 0:02:57.3]} 10. Bb3 {[%clk 0:02:28.7]} 10... a5 {[%clk 0:02:55.4]} 11. f4
{[%clk 0:02:19.8]} 11... a4 {[%clk 0:02:55.4]} 12. Bxa4 {[%clk 0:02:15.2]} 12...
Nxe4 {[%clk 0:02:54.7]} 13. Bxc6 {[%clk 0:02:02.3]} 13... Nxc3 {[%clk
0:02:54.7]} 14. Qd3 {[%clk 0:02:02.6]} 14... Ra6 {[%clk 0:02:55.2]} 15. Qxc3
{[%clk 0:02:01.1]} 15... Bf6 {[%clk 0:02:50.9]} 16. Bb5 {[%clk 0:01:50.1]} 16...
exf4 {[%clk 0:02:33.9]} 17. Qd3 {[%clk 0:01:48.2]} 17... Ra5 {[%clk 0:02:19.6]}
18. Rxf4 {[%clk 0:01:45.8]} 18... Bxb2 {[%clk 0:02:15.5]} 19. Rd1 {[%clk
0:01:34.8]} 19... Be5 {[%clk 0:02:13]} 20. Ra4 {[%clk 0:01:26.4]} 20... Rxa4
{[%clk 0:02:09]} 21. Bxa4 {[%clk 0:01:26.2]} 21... Qa5 {[%clk 0:02:07.5]} 22.
Bb3 {[%clk 0:01:25.2]} 22... Ba6 {[%clk 0:02:06.1]} 23. Qd5 {[%clk 0:01:20.9]}
23... Qc7 {[%clk 0:02:04.2]} 24. c4 {[%clk 0:01:18.5]} 24... Bb7 {[%clk
0:02:04.5]} 25. Qd2 {[%clk 0:01:10.3]} 25... Bc6 {[%clk 0:02:00.3]} 26. Rf1
{[%clk 0:01:02.6]} 26... h6 {[%clk 0:01:59.9]} 27. Bc2 {[%clk 0:00:45.6]} 27...
Qe7 {[%clk 0:01:45.5]} 28. Bf4 {[%clk 0:00:34.7]} 28... Bxf4 {[%clk 0:01:40.5]}
29. Rxf4 {[%clk 0:00:34.7]} 29... Re8 {[%clk 0:01:40.5]} 30. Rf1 {[%clk
0:00:18.2]} 30... Qe5 {[%clk 0:01:36.6]} 31. Bb3 {[%clk 0:00:14.1]} 31... Re7
{[%clk 0:01:31.9]} 32. c5 {[%clk 0:00:14.1]} 32... Qxc5+ {[%clk 0:01:31]} 33.
Kh1 {[%clk 0:00:14.5]} 33... Qe5 {[%clk 0:01:28.9]} 34. Qf2 {[%clk 0:00:13.2]}
34... d5 {[%clk 0:01:26.8]} 35. Qb6 {[%clk 0:00:12.9]} 35... Be8 {[%clk
0:01:26.2]} 36. Qc5 {[%clk 0:00:12.3]} 36... d4 {[%clk 0:01:24.7]} 37. Qxe5
{[%clk 0:00:11.6]} 37... Rxe5 {[%clk 0:01:25.2]} 38. Rd1 {[%clk 0:00:12]} 38...
Re2 {[%clk 0:01:18]} 39. h3 {[%clk 0:00:10.2]} 39... Bc6 {[%clk 0:01:17.5]} 40.
Rxd4 {[%clk 0:00:10.2]} 40... Bxg2+ {[%clk 0:01:17.4]} 41. Kg1 {[%clk
0:00:10.1]} 41... Bxh3 {[%clk 0:01:17.8]} 42. Rd8+ {[%clk 0:00:09.6]} 42... Kh7
{[%clk 0:01:15.8]} 43. Bxf7 {[%clk 0:00:10.1]} 43... Bf5 {[%clk 0:01:14.4]} 44.
Bb3 {[%clk 0:00:09.8]} 44... h5 {[%clk 0:01:11.4]} 45. Rd4 {[%clk 0:00:03.3]}
45... g6 {[%clk 0:01:10.7]} 46. Rf4 {[%clk 0:00:01.7]} 46... Kh6 {[%clk
0:01:10.1]} 47. Rf2 {[%clk 0:00:01.9]} 47... Re1+ {[%clk 0:01:09.7]} 0-1

[Event "*** Titled Tuesday Blitz"]
[Site "Chess.com"]
[Date "2020.04.28"]
[Round "7"]
[White "Abund"]
[Black "AttilaTurzo"]
[Result "1-0"]
[WhiteElo "2669"]
[BlackElo "2493"]
[TimeControl "180+1"]
[EndTime "11:18:03 PDT"]
[Termination "Abund won by resignation"]

1. Nf3 {[%clk 0:03:00.9]} 1... d5 {[%clk 0:02:57.3]} 2. d4 {[%clk 0:02:50.8]}
2... c6 {[%clk 0:02:58.2]} 3. c4 {[%clk 0:02:50.6]} 3... Nf6 {[%clk 0:02:58.3]}
4. e3 {[%clk 0:02:50.9]} 4... Bf5 {[%clk 0:02:57.3]} 5. Nc3 {[%clk 0:02:50.2]}
5... e6 {[%clk 0:02:57.4]} 6. Nh4 {[%clk 0:02:50.5]} 6... Be4 {[%clk 0:02:56.4]}
7. f3 {[%clk 0:02:50.4]} 7... Bg6 {[%clk 0:02:53.7]} 8. Qb3 {[%clk 0:02:50.2]}
8... Qb6 {[%clk 0:02:49.7]} 9. Nxg6 {[%clk 0:02:49.3]} 9... hxg6 {[%clk
0:02:49.4]} 10. Bd2 {[%clk 0:02:34.8]} 10... Nbd7 {[%clk 0:02:45.4]} 11. O-O-O
{[%clk 0:02:32.2]} 11... Be7 {[%clk 0:02:39.7]} 12. Kb1 {[%clk 0:02:16]} 12...
Qc7 {[%clk 0:02:34.7]} 13. g3 {[%clk 0:02:06.7]} 13... O-O {[%clk 0:02:13.7]}
14. Rc1 {[%clk 0:01:49]} 14... Qb6 {[%clk 0:02:10.1]} 15. Qc2 {[%clk 0:01:41.7]}
15... dxc4 {[%clk 0:02:04.2]} 16. Bxc4 {[%clk 0:01:40.2]} 16... c5 {[%clk
0:02:02.5]} 17. d5 {[%clk 0:01:36.7]} 17... exd5 {[%clk 0:01:53.1]} 18. Nxd5
{[%clk 0:01:34.7]} 18... Nxd5 {[%clk 0:01:52.9]} 19. Bxd5 {[%clk 0:01:35.6]}
19... Nf6 {[%clk 0:01:47.2]} 20. Bb3 {[%clk 0:01:23.4]} 20... Qc6 {[%clk
0:01:45]} 21. e4 {[%clk 0:01:13.6]} 21... b5 {[%clk 0:01:44.6]} 22. e5 {[%clk
0:01:05]} 22... Nd5 {[%clk 0:01:33.6]} 23. Qe4 {[%clk 0:00:43.4]} 23... c4
{[%clk 0:01:32.2]} 24. Bc2 {[%clk 0:00:42.9]} 24... b4 {[%clk 0:01:18.8]} 25. h4
{[%clk 0:00:37.2]} 25... c3 {[%clk 0:01:14.9]} 26. Bb3 {[%clk 0:00:30]} 26...
Rfd8 {[%clk 0:00:59]} 27. h5 {[%clk 0:00:28.7]} 27... Qe6 {[%clk 0:00:50.7]} 28.
bxc3 {[%clk 0:00:25.5]} 28... bxc3 {[%clk 0:00:47.2]} 29. Bxc3 {[%clk
0:00:24.1]} 29... Nxc3+ {[%clk 0:00:34]} 30. Rxc3 {[%clk 0:00:23.8]} 30... Qf5
{[%clk 0:00:34.4]} 31. hxg6 {[%clk 0:00:19.2]} 31... Qxe4+ {[%clk 0:00:31.1]}
32. fxe4 {[%clk 0:00:20.1]} 32... Bg5 {[%clk 0:00:24.3]} 33. gxf7+ {[%clk
0:00:17.5]} 33... Kf8 {[%clk 0:00:24.7]} 34. Rh8+ {[%clk 0:00:17.7]} 34... Ke7
{[%clk 0:00:22.7]} 35. Rc7+ {[%clk 0:00:18.4]} 1-0